[Event "Hungarian Rapid-ch 2022"]
[Site "Ajka"]
[Date "2022.07.17"]
[Round "10.28"]
[White "Emodi, Barnabas"]
[Black "Molnar, Aurel Jr."]
[Result "0-1"]
[ECO "A48"]
[WhiteElo "2341"]
[BlackElo "2014"]
[Annotator "ChessBase"]
[PlyCount "88"]
[EventDate "2022.07.15"]
[EventType "swiss"]
[EventCountry "HUN"]
[SourceTitle "playchess.com"]
[Source "ChessBase"]
[SourceQuality "1"]
[TimeControl "900+10"]

1. d4 {[%emt 0:00:13]} Nf6 {[%emt 0:00:11]} 2. Nf3 {[%emt 0:00:02]} g6 {[%emt 0:00:01]} 3. Bg5 {[%emt 0:00:04]} Ne4 {[%emt 0:00:10]} 4. Bh4 {[%emt 0:00:05]} Bg7 {[%emt 0:00:02]} 5. e3 {[%emt 0:00:12]} d5 {[%emt 0:00:24]} 6. Bd3 {[%emt 0:00:14]} c5 {[%emt 0:00:36]} 7. c3 {[%emt 0:00:22]} O-O {[%emt 0:01:51]} 8. O-O {[%emt 0:00:09]} Nc6 {[%emt 0:00:59]} 9. Nbd2 {[%emt 0:00:56]} Bf5 {[%emt 0:02:43]} 10. Qe2 {[%emt 0:03:00]} Nxd2 {[%emt 0:00:52]} 11. Nxd2 {[%emt 0:00:03]} Bxd3 {[%emt 0:01:44]} 12. Qxd3 {[%emt 0:00:03]} Qb6 {[%emt 0:01:57]} 13. Rab1 {[%emt 0:01:18]} Rfe8 {[%emt 0:00:55]} 14. f4 {[%emt 0:01:18]} Bf6 {[%emt 0:00:45]} 15. Bf2 {[%emt 0:01:57]} Rad8 {[%emt 0:00:24]} 16. Nf3 {[%emt 0:00:58]} e6 {[%emt 0:01:05]} 17. Ne5 {[%emt 0:01:06]} Bg7 {[%emt 0:01:32]} 18. b4 {[%emt 0:01:30]} cxb4 {[%emt 0:00:51]} 19. cxb4 {[%emt 0:00:03]} f6 {[%emt 0:00:21]} 20. Nxc6 {[%emt 0:00:53]} Qxc6 {[%emt 0:00:09]} 21. Rfc1 {[%emt 0:00:16]} Qd7 {[%emt 0:00:17]} 22. Rc2 {[%emt 0:00:26]} Rc8 {[%emt 0:00:10]} 23. Rbc1 {[%emt 0:00:01]} Bf8 {[%emt 0:00:12]} 24. Be1 {[%emt 0:00:45]} Bd6 {[%emt 0:00:04]} 25. h4 {[%emt 0:00:38]} a6 {[%emt 0:00:13]} 26. h5 {[%emt 0:00:15]} Kf7 {[%emt 0:00:10]} 27. g3 {[%emt 0:00:43]} b5 {[%emt 0:00:06]} 28. a4 {[%emt 0:00:16]} Rc4 {[%emt 0:00:08]} 29. axb5 {[%emt 0:00:10]} axb5 {[%emt 0:00:10]} 30. e4 {[%emt 0:00:35]} Rec8 {[%emt 0:00:29]} 31. e5 {[%emt 0:00:10]} Be7 {[%emt 0:00:08]} 32. Rxc4 {[%emt 0:00:32]} dxc4 {[%emt 0:00:17]} 33. Qe4 {[%emt 0:00:30]} f5 {[%emt 0:00:07]} 34. Qe3 {[%emt 0:00:16]} Ra8 {[%emt 0:00:04]} 35. Bc3 {[%emt 0:00:05]} Qd5 {[%emt 0:00:10]} 36. hxg6+ {[%emt 0:00:10]} hxg6 {[%emt 0:00:03]} 37. Kf2 {[%emt 0:00:12]} Ra2+ {[%emt 0:00:06]} 38. Bd2 {[%emt 0:00:41]} Bxb4 {[%emt 0:00:04]} 39. Rd1 {[%emt 0:00:09]} c3 {[%emt 0:00:04]} 40. g4 {[%emt 0:00:20]} Rxd2+ {[%emt 0:00:09]} 41. Rxd2 {[%emt 0:00:02]} cxd2 {[%emt 0:00:03]} 42. Qh3 {[%emt 0:00:04]} Qxd4+ {[%emt 0:00:06]} 43. Kg2 {[%emt 0:00:00]} Qe4+ {[%emt 0:00:07]} 44. Kh2 {[%emt 0:00:01]} Qxf4+ {[%emt 0:00:01]} 0-1

[Event "Hungarian Rapid-ch 2022"]
[Site "Ajka"]
[Date "2022.07.17"]
[Round "10.29"]
[White "Majoros, Rozsa Evelin"]
[Black "Martini, Balazs"]
[Result "0-1"]
[ECO "B32"]
[WhiteElo "2059"]
[BlackElo "2348"]
[Annotator "ChessBase"]
[PlyCount "66"]
[EventDate "2022.07.15"]
[EventType "swiss"]
[EventCountry "HUN"]
[SourceTitle "playchess.com"]
[Source "ChessBase"]
[SourceQuality "1"]
[TimeControl "900+10"]

1. e4 {[%emt 0:00:11]} c5 {[%emt 0:00:12]} 2. Nf3 {[%emt 0:00:02]} Nc6 {[%emt 0:00:01]} 3. d4 {[%emt 0:00:02]} cxd4 {[%emt 0:00:03]} 4. Nxd4 {[%emt 0:00:01]} e5 {[%emt 0:00:02]} 5. Nb5 {[%emt 0:00:02]} d6 {[%emt 0:00:02]} 6. N1c3 {[%emt 0:00:10]} a6 {[%emt 0:00:01]} 7. Na3 {[%emt 0:00:18]} Be7 {[%emt 0:00:04]} 8. Nd5 {[%emt 0:01:05]} Nf6 {[%emt 0:00:04]} 9. Be3 {[%emt 0:00:50]} Nxd5 {[%emt 0:02:21]} 10. Qxd5 {[%emt 0:01:39]} Be6 {[%emt 0:01:46]} 11. Qd2 {[%emt 0:00:07]} b5 {[%emt 0:00:53]} 12. c4 {[%emt 0:00:21]} d5 {[%emt 0:04:28]} 13. Qc2 {[%emt 0:02:08]} Bb4+ {[%emt 0:01:06]} 14. Bd2 {[%emt 0:01:26]} Nd4 {[%emt 0:00:13]} 15. Qc1 {[%emt 0:00:34]} Bxd2+ {[%emt 0:01:29]} 16. Qxd2 {[%emt 0:00:08]} dxc4 {[%emt 0:00:08]} 17. Be2 {[%emt 0:00:35]} O-O {[%emt 0:00:31]} 18. Rd1 {[%emt 0:00:43]} Qe7 {[%emt 0:00:49]} 19. O-O {[%emt 0:00:41]} c3 {[%emt 0:00:04]} 20. Qe3 {[%emt 0:01:10]} Rac8 {[%emt 0:00:38]} 21. Bd3 {[%emt 0:01:16]} cxb2 {[%emt 0:00:57]} 22. Nb1 {[%emt 0:00:06]} Bxa2 {[%emt 0:00:48]} 23. f4 {[%emt 0:00:46]} Qc5 {[%emt 0:00:27]} 24. Kh1 {[%emt 0:00:19]} Ne6 {[%emt 0:00:16]} 25. Qd2 {[%emt 0:00:49]} Nxf4 {[%emt 0:00:10]} 26. Qxb2 {[%emt 0:00:09]} Bxb1 {[%emt 0:00:25]} 27. Bxb1 {[%emt 0:00:12]} Rfd8 {[%emt 0:00:22]} 28. Rc1 {[%emt 0:01:23]} Qe7 {[%emt 0:00:28]} 29. Rxc8 {[%emt 0:00:18]} Rxc8 {[%emt 0:00:02]} 30. Rd1 {[%emt 0:00:02]} Rd8 {[%emt 0:00:37]} 31. Rc1 {[%emt 0:00:41]} Qg5 {[%emt 0:00:07]} 32. g3 {[%emt 0:00:13]} Ne6 {[%emt 0:00:24]} 33. Qf2 {[%emt 0:01:28]} Qxc1+ 0-1

[Event "Hungarian Rapid-ch 2022"]
[Site "Ajka"]
[Date "2022.07.17"]
[Round "10.30"]
[White "Dobos, Jozsef"]
[Black "Mihok-Juhasz, Barbara"]
[Result "0-1"]
[ECO "A00"]
[WhiteElo "2244"]
[BlackElo "2221"]
[Annotator "ChessBase"]
[PlyCount "66"]
[EventDate "2022.07.15"]
[EventType "swiss"]
[EventCountry "HUN"]
[SourceTitle "playchess.com"]
[Source "ChessBase"]
[SourceQuality "1"]
[TimeControl "900+10"]

1. a3 {[%emt 0:00:15]} c5 {[%emt 0:01:10]} 2. g3 {[%emt 0:01:54]} g6 {[%emt 0:00:21]} 3. Bg2 {[%emt 0:00:04]} Bg7 {[%emt 0:00:02]} 4. c4 {[%emt 0:00:12]} Nc6 {[%emt 0:00:19]} 5. Nc3 {[%emt 0:00:02]} Nf6 {[%emt 0:00:15]} 6. e3 {[%emt 0:00:13]} e5 {[%emt 0:00:46]} 7. Nge2 {[%emt 0:00:11]} O-O {[%emt 0:00:09]} 8. O-O {[%emt 0:00:03]} d6 {[%emt 0:00:54]} 9. d3 {[%emt 0:01:10]} Bg4 {[%emt 0:00:20]} 10. h3 {[%emt 0:00:05]} Be6 {[%emt 0:00:02]} 11. Nd5 {[%emt 0:00:18]} Qd7 {[%emt 0:00:05]} 12. Kh2 {[%emt 0:00:01]} Ne8 {[%emt 0:01:36]} 13. Rb1 {[%emt 0:00:11]} f5 {[%emt 0:02:21]} 14. b4 {[%emt 0:00:04]} Rb8 {[%emt 0:01:24]} 15. bxc5 {[%emt 0:01:22]} dxc5 {[%emt 0:00:02]} 16. Bb2 {[%emt 0:00:16]} Nd6 {[%emt 0:01:06]} 17. f4 {[%emt 0:01:49]} Rbd8 {[%emt 0:02:14]} 18. Qc2 {[%emt 0:01:22]} b6 {[%emt 0:00:37]} 19. Qa4 {[%emt 0:01:02]} e4 {[%emt 0:01:23]} 20. Bxg7 {[%emt 0:00:17]} Kxg7 {[%emt 0:00:02]} 21. dxe4 {[%emt 0:00:25]} fxe4 {[%emt 0:00:04]} 22. Rbd1 {[%emt 0:00:41]} Na5 {[%emt 0:00:12]} 23. Qc2 {[%emt 0:00:06]} Qf7 {[%emt 0:00:02]} 24. Nec3 {[%emt 0:01:33]} Naxc4 {[%emt 0:00:47]} 25. Nxe4 {[%emt 0:00:02]} Nxe4 {[%emt 0:01:27]} 26. Qxe4 {[%emt 0:02:48]} Bxd5 {[%emt 0:00:02]} 27. Rxd5 {[%emt 0:00:05]} Rxd5 {[%emt 0:00:01]} 28. Qxc4 {[%emt 0:00:07]} Rd7 {[%emt 0:00:21]} 29. Qc2 {[%emt 0:00:09]} Rfd8 {[%emt 0:00:02]} 30. Rf2 {[%emt 0:00:02]} Qf6 {[%emt 0:00:13]} 31. e4 {[%emt 0:00:03]} Qd4 {[%emt 0:00:03]} 32. e5 {[%emt 0:00:02]} Qd3 {[%emt 0:00:30]} 33. Qb2 {[%emt 0:00:03]} Rd4 {[%emt 0:00:03]} 0-1

[Event "Hungarian Rapid-ch 2022"]
[Site "Ajka"]
[Date "2022.07.17"]
[Round "11.1"]
[White "Gledura, Benjamin"]
[Black "Csonka, Balazs"]
[Result "1-0"]
[ECO "D37"]
[WhiteElo "2637"]
[BlackElo "2495"]
[Annotator "ChessBase"]
[PlyCount "63"]
[EventDate "2022.07.15"]
[EventType "swiss"]
[EventCountry "HUN"]
[SourceTitle "playchess.com"]
[Source "ChessBase"]
[SourceQuality "1"]
[TimeControl "900+10"]

1. d4 {[%emt 0:00:13]} Nf6 {[%emt 0:00:12]} 2. Nf3 {[%emt 0:00:07]} d5 {[%emt 0:00:03]} 3. c4 {[%emt 0:00:07]} e6 {[%emt 0:00:02]} 4. Nc3 {[%emt 0:00:07]} dxc4 {[%emt 0:00:04]} 5. e4 {[%emt 0:00:30]} Bb4 {[%emt 0:00:06]} 6. Bxc4 {[%emt 0:00:04]} Nxe4 {[%emt 0:00:03]} 7. O-O {[%emt 0:00:09]} Nf6 {[%emt 0:00:52]} 8. Qa4+ {[%emt 0:00:33]} Nc6 {[%emt 0:00:02]} 9. Ne5 {[%emt 0:00:04]} Rb8 {[%emt 0:00:18]} 10. a3 {[%emt 0:02:36]} Bd6 {[%emt 0:02:28]} 11. Nxc6 {[%emt 0:00:30]} bxc6 {[%emt 0:00:02]} 12. Qxa7 {[%emt 0:02:01]} Bd7 {[%emt 0:00:34]} 13. Qa4 {[%emt 0:00:03]} c5 {[%emt 0:05:01]} 14. Qd1 {[%emt 0:00:02]} cxd4 {[%emt 0:00:02]} 15. Qxd4 {[%emt 0:00:03]} O-O {[%emt 0:00:09]} 16. Rd1 {[%emt 0:00:41]} h6 {[%emt 0:00:47]} 17. b4 {[%emt 0:03:20]} Qe7 {[%emt 0:00:06]} 18. Bb2 {[%emt 0:00:37]} Bc6 {[%emt 0:00:25]} 19. h3 {[%emt 0:00:16]} Rfd8 {[%emt 0:01:42]} 20. Qe3 {[%emt 0:00:01]} Rd7 {[%emt 0:01:55]} 21. Bf1 {[%emt 0:01:35]} Rbd8 {[%emt 0:01:52]} 22. Rac1 {[%emt 0:01:00]} Bb7 {[%emt 0:00:24]} 23. Bb5 {[%emt 0:01:42]} c6 {[%emt 0:00:02]} 24. Ba4 {[%emt 0:00:01]} Ra8 {[%emt 0:00:30]} 25. Bb3 {[%emt 0:00:55]} c5 {[%emt 0:00:11]} 26. Na4 {[%emt 0:00:17]} cxb4 {[%emt 0:00:59]} 27. Nb6 {[%emt 0:00:03]} Bc5 {[%emt 0:00:02]} 28. Qxc5 {[%emt 0:00:25]} Rxd1+ {[%emt 0:00:21]} 29. Bxd1 {[%emt 0:00:02]} Qxc5 {[%emt 0:00:02]} 30. Rxc5 {[%emt 0:00:01]} bxa3 {[%emt 0:00:13]} 31. Nxa8 {[%emt 0:00:42]} axb2 {[%emt 0:00:02]} 32. Bc2 {[%emt 0:00:01]} 1-0

[Event "Hungarian Rapid-ch 2022"]
[Site "Ajka"]
[Date "2022.07.17"]
[Round "11.3"]
[White "Prohaszka, Peter"]
[Black "Aczel, Gergely"]
[Result "1/2-1/2"]
[ECO "E01"]
[WhiteElo "2570"]
[BlackElo "2499"]
[Annotator "ChessBase"]
[PlyCount "24"]
[EventDate "2022.07.15"]
[EventType "swiss"]
[EventCountry "HUN"]
[SourceTitle "playchess.com"]
[Source "ChessBase"]
[SourceQuality "1"]
[TimeControl "900+10"]

1. d4 {[%emt 0:00:18]} Nf6 {[%emt 0:00:22]} 2. c4 {[%emt 0:00:09]} e6 {[%emt 0:00:01]} 3. g3 {[%emt 0:00:08]} d5 {[%emt 0:00:02]} 4. Bg2 {[%emt 0:00:02]} Bb4+ {[%emt 0:00:02]} 5. Nd2 {[%emt 0:00:13]} O-O {[%emt 0:00:05]} 6. Ngf3 {[%emt 0:00:04]} b6 {[%emt 0:00:16]} 7. O-O {[%emt 0:00:28]} Bb7 {[%emt 0:00:05]} 8. b3 {[%emt 0:00:25]} c5 {[%emt 0:00:07]} 9. Bb2 {[%emt 0:00:58]} Qe7 {[%emt 0:00:02]} 10. cxd5 {[%emt 0:00:48]} Bxd5 {[%emt 0:00:38]} 11. a3 {[%emt 0:01:21]} Bxd2 {[%emt 0:00:05]} 12. Qxd2 {[%emt 0:00:02]} Nc6 {[%emt 0:03:19]} 1/2-1/2

[Event "Hungarian Rapid-ch 2022"]
[Site "Ajka"]
[Date "2022.07.17"]
[Round "11.4"]
[White "Kozak, Adam"]
[Black "Kaczur, Florian"]
[Result "1-0"]
[ECO "A05"]
[WhiteElo "2522"]
[BlackElo "2482"]
[Annotator "ChessBase"]
[PlyCount "77"]
[EventDate "2022.07.15"]
[EventType "swiss"]
[EventCountry "HUN"]
[SourceTitle "playchess.com"]
[Source "ChessBase"]
[SourceQuality "1"]
[TimeControl "900+10"]

1. Nf3 {[%emt 0:00:13]} Nf6 {[%emt 0:00:12]} 2. b3 {[%emt 0:00:01]} g6 {[%emt 0:00:06]} 3. Bb2 {[%emt 0:00:02]} Bg7 {[%emt 0:00:03]} 4. g3 {[%emt 0:00:02]} b6 {[%emt 0:00:06]} 5. Bg2 {[%emt 0:00:03]} Bb7 {[%emt 0:00:02]} 6. O-O {[%emt 0:00:04]} c5 {[%emt 0:00:06]} 7. c4 {[%emt 0:00:06]} O-O {[%emt 0:00:04]} 8. Nc3 {[%emt 0:00:04]} d6 {[%emt 0:00:06]} 9. Rc1 {[%emt 0:01:03]} Nc6 {[%emt 0:01:34]} 10. e3 {[%emt 0:00:22]} e6 {[%emt 0:00:34]} 11. d4 {[%emt 0:00:42]} Qe7 {[%emt 0:00:09]} 12. Re1 {[%emt 0:02:15]} Rac8 {[%emt 0:00:23]} 13. d5 {[%emt 0:00:49]} exd5 {[%emt 0:00:07]} 14. cxd5 {[%emt 0:00:05]} Na5 {[%emt 0:01:41]} 15. e4 {[%emt 0:00:50]} Nd7 {[%emt 0:00:04]} 16. Qc2 {[%emt 0:01:20]} Ne5 {[%emt 0:01:01]} 17. Nxe5 {[%emt 0:00:12]} Bxe5 {[%emt 0:00:02]} 18. f4 {[%emt 0:00:50]} Bd4+ {[%emt 0:00:07]} 19. Kh1 {[%emt 0:00:02]} Qd7 {[%emt 0:02:39]} 20. Ne2 {[%emt 0:01:04]} Bxb2 {[%emt 0:00:09]} 21. Qxb2 {[%emt 0:00:01]} b5 {[%emt 0:00:55]} 22. Qd2 {[%emt 0:02:23]} b4 {[%emt 0:00:07]} 23. Ng1 {[%emt 0:02:03]} Rfe8 {[%emt 0:03:37]} 24. Nf3 {[%emt 0:01:15]} Rcd8 {[%emt 0:00:57]} 25. f5 {[%emt 0:00:13]} f6 {[%emt 0:00:24]} 26. h4 {[%emt 0:00:55]} Qg7 {[%emt 0:00:09]} 27. Kh2 {[%emt 0:00:58]} Bc8 {[%emt 0:00:04]} 28. g4 {[%emt 0:00:06]} gxf5 {[%emt 0:00:42]} 29. gxf5 {[%emt 0:00:22]} Kh8 {[%emt 0:00:03]} 30. Bh3 {[%emt 0:00:13]} Nb7 {[%emt 0:00:23]} 31. Rg1 {[%emt 0:00:39]} Qf7 {[%emt 0:00:44]} 32. Qb2 {[%emt 0:00:02]} Rf8 {[%emt 0:00:42]} 33. Ng5 {[%emt 0:00:15]} Qh5 {[%emt 0:00:02]} 34. Rg4 {[%emt 0:00:28]} Rde8 {[%emt 0:00:13]} 35. Ne6 {[%emt 0:00:17]} Nd8 {[%emt 0:00:40]} 36. Nxf8 {[%emt 0:00:16]} Rxf8 {[%emt 0:00:02]} 37. Rcg1 {[%emt 0:00:05]} Qe8 {[%emt 0:00:34]} 38. Rg8+ {[%emt 0:00:04]} Rxg8 {[%emt 0:00:04]} 39. Qxf6+ {[%emt 0:00:02]} 1-0

[Event "Hungarian Rapid-ch 2022"]
[Site "Ajka"]
[Date "2022.07.17"]
[Round "11.5"]
[White "Hera, Imre Jr."]
[Black "Lizak, Peter"]
[Result "0-1"]
[ECO "A05"]
[WhiteElo "2568"]
[BlackElo "2400"]
[Annotator "ChessBase"]
[PlyCount "86"]
[EventDate "2022.07.15"]
[EventType "swiss"]
[EventCountry "HUN"]
[SourceTitle "playchess.com"]
[Source "ChessBase"]
[SourceQuality "1"]
[TimeControl "900+10"]

1. Nf3 {[%emt 0:00:12]} Nf6 {[%emt 0:00:12]} 2. g3 {[%emt 0:00:02]} c5 {[%emt 0:00:30]} 3. Bg2 {[%emt 0:00:20]} Nc6 {[%emt 0:00:31]} 4. O-O {[%emt 0:00:13]} e6 {[%emt 0:00:29]} 5. c4 {[%emt 0:00:16]} Qb6 {[%emt 0:00:02]} 6. b3 {[%emt 0:00:26]} Be7 {[%emt 0:00:18]} 7. Bb2 {[%emt 0:00:02]} d5 {[%emt 0:00:03]} 8. d3 {[%emt 0:02:22]} O-O {[%emt 0:00:08]} 9. Nbd2 {[%emt 0:00:04]} a5 {[%emt 0:01:04]} 10. Rb1 {[%emt 0:02:01]} h6 {[%emt 0:00:36]} 11. a3 {[%emt 0:02:26]} Rd8 {[%emt 0:00:29]} 12. Qc2 {[%emt 0:00:51]} d4 {[%emt 0:00:06]} 13. e4 {[%emt 0:00:15]} dxe3 {[%emt 0:03:23]} 14. fxe3 {[%emt 0:00:02]} Ng4 {[%emt 0:00:01]} 15. Rbe1 {[%emt 0:01:36]} Bf6 {[%emt 0:00:01]} 16. Bc1 {[%emt 0:00:11]} Nce5 {[%emt 0:00:55]} 17. Nxe5 {[%emt 0:00:04]} Bxe5 {[%emt 0:00:57]} 18. Ne4 {[%emt 0:01:26]} f5 {[%emt 0:03:26]} 19. Nc3 {[%emt 0:00:02]} Bd7 {[%emt 0:00:01]} 20. Na4 {[%emt 0:01:30]} Qc7 {[%emt 0:00:03]} 21. Nxc5 {[%emt 0:00:09]} Bxg3 {[%emt 0:00:29]} 22. d4 {[%emt 0:02:52]} Bxe1 {[%emt 0:01:06]} 23. Rxe1 {[%emt 0:00:01]} Qxh2+ {[%emt 0:00:15]} 24. Kf1 {[%emt 0:00:01]} Qg3 {[%emt 0:00:47]} 25. Bxb7 {[%emt 0:00:20]} Nh2+ {[%emt 0:01:33]} 26. Ke2 {[%emt 0:00:01]} Be8 {[%emt 0:00:01]} 27. Bxa8 {[%emt 0:01:25]} Bh5+ {[%emt 0:00:14]} 28. Kd3 {[%emt 0:00:01]} Qxe1 {[%emt 0:01:05]} 29. Qxh2 {[%emt 0:00:01]} Qf1+ {[%emt 0:00:01]} 30. Kc2 {[%emt 0:00:10]} Qd1+ {[%emt 0:00:09]} 31. Kb2 {[%emt 0:00:02]} Rxa8 {[%emt 0:00:03]} 32. Nxe6 {[%emt 0:00:07]} a4 {[%emt 0:00:10]} 33. Qc2 {[%emt 0:00:49]} axb3 {[%emt 0:00:29]} 34. Qxd1 {[%emt 0:00:06]} Bxd1 {[%emt 0:00:01]} 35. d5 {[%emt 0:00:02]} Kf7 {[%emt 0:00:17]} 36. c5 {[%emt 0:00:05]} Bf3 {[%emt 0:00:21]} 37. Nd4 {[%emt 0:00:31]} Bxd5 {[%emt 0:00:05]} 38. Nxf5 {[%emt 0:00:01]} h5 {[%emt 0:00:15]} 39. e4 {[%emt 0:00:01]} Be6 {[%emt 0:00:06]} 40. Nd6+ {[%emt 0:00:04]} Ke7 {[%emt 0:00:03]} 41. e5 {[%emt 0:00:14]} Kd7 {[%emt 0:00:01]} 42. Bg5 {[%emt 0:00:22]} Ra4 {[%emt 0:00:01]} 43. Nb5 {[%emt 0:00:08]} Rg4 {[%emt 0:00:18]} 0-1

[Event "Hungarian Rapid-ch 2022"]
[Site "Ajka"]
[Date "2022.07.17"]
[Round "11.6"]
[White "Horvath, Csaba"]
[Black "Czebe, Attila"]
[Result "1/2-1/2"]
[ECO "A41"]
[WhiteElo "2506"]
[BlackElo "2385"]
[Annotator "ChessBase"]
[PlyCount "95"]
[EventDate "2022.07.15"]
[EventType "swiss"]
[EventCountry "HUN"]
[SourceTitle "playchess.com"]
[Source "ChessBase"]
[SourceQuality "1"]
[TimeControl "900+10"]

1. d4 {[%emt 0:00:11]} d6 {[%emt 0:00:28]} 2. Nf3 {[%emt 0:00:09]} g6 {[%emt 0:00:13]} 3. b3 {[%emt 0:00:23]} Bg7 {[%emt 0:00:03]} 4. Bb2 {[%emt 0:00:01]} Nf6 {[%emt 0:00:06]} 5. g3 {[%emt 0:00:01]} O-O {[%emt 0:00:06]} 6. Bg2 {[%emt 0:00:02]} e5 {[%emt 0:00:40]} 7. dxe5 {[%emt 0:00:04]} Ng4 {[%emt 0:00:29]} 8. Nc3 {[%emt 0:00:52]} Nxe5 {[%emt 0:00:07]} 9. Nxe5 {[%emt 0:00:13]} Bxe5 {[%emt 0:00:05]} 10. Qd2 {[%emt 0:00:50]} c6 {[%emt 0:01:45]} 11. O-O-O {[%emt 0:01:12]} d5 {[%emt 0:00:19]} 12. e4 {[%emt 0:00:35]} d4 {[%emt 0:00:13]} 13. Na4 {[%emt 0:01:46]} Na6 {[%emt 0:07:01]} 14. Bxd4 {[%emt 0:01:55]} Bxd4 {[%emt 0:00:04]} 15. Qxd4 {[%emt 0:00:01]} Qe7 {[%emt 0:00:01]} 16. Qd6 {[%emt 0:00:55]} Qg5+ {[%emt 0:00:02]} 17. Kb1 {[%emt 0:01:04]} Bg4 {[%emt 0:00:13]} 18. f3 {[%emt 0:01:11]} Rad8 {[%emt 0:00:06]} 19. Qf4 {[%emt 0:00:09]} Qxf4 {[%emt 0:00:02]} 20. gxf4 {[%emt 0:00:02]} Bc8 {[%emt 0:00:03]} 21. Nc3 {[%emt 0:01:23]} Nc7 {[%emt 0:00:18]} 22. Ne2 {[%emt 0:00:27]} Ne6 {[%emt 0:00:02]} 23. c3 {[%emt 0:00:47]} Ng7 {[%emt 0:00:30]} 24. Kc2 {[%emt 0:00:06]} Nh5 {[%emt 0:00:02]} 25. Rxd8 {[%emt 0:00:41]} Rxd8 {[%emt 0:00:01]} 26. Rd1 {[%emt 0:00:02]} Rxd1 {[%emt 0:00:02]} 27. Kxd1 {[%emt 0:00:01]} b6 {[%emt 0:00:05]} 28. Kd2 Ba6 {[%emt 0:00:01]} 29. c4 {[%emt 0:00:47]} b5 {[%emt 0:00:02]} 30. Kc3 {[%emt 0:00:56]} bxc4 {[%emt 0:00:01]} 31. bxc4 {[%emt 0:00:08]} c5 {[%emt 0:00:36]} 32. Bh3 {[%emt 0:00:06]} Kf8 {[%emt 0:00:01]} 33. Bg4 {[%emt 0:00:12]} Ng7 {[%emt 0:00:07]} 34. Nc1 {[%emt 0:00:36]} f5 {[%emt 0:01:40]} 35. Bh3 {[%emt 0:00:04]} Ke7 {[%emt 0:00:54]} 36. Nd3 {[%emt 0:00:17]} Kd6 {[%emt 0:00:01]} 37. Ne5 {[%emt 0:00:24]} Bb7 {[%emt 0:00:28]} 38. Kd3 {[%emt 0:00:18]} Ne6 {[%emt 0:00:37]} 39. Ke3 {[%emt 0:00:05]} Nd4 {[%emt 0:00:01]} 40. Bf1 {[%emt 0:00:36]} Nc2+ {[%emt 0:01:06]} 41. Kd2 {[%emt 0:00:01]} Nd4 {[%emt 0:00:10]} 42. Bg2 {[%emt 0:00:26]} Bc8 {[%emt 0:00:22]} 43. Ke3 {[%emt 0:00:38]} Be6 {[%emt 0:00:12]} 44. Bf1 {[%emt 0:00:04]} Nc2+ {[%emt 0:00:20]} 45. Kd2 {[%emt 0:00:02]} Nd4 {[%emt 0:00:02]} 46. Bd3 {[%emt 0:00:14]} Nc6 {[%emt 0:00:08]} 47. Nxc6 {[%emt 0:00:13]} Kxc6 {[%emt 0:00:00]} 48. Ke1 1/2-1/2

[Event "Hungarian Rapid-ch 2022"]
[Site "Ajka"]
[Date "2022.07.17"]
[Round "11.7"]
[White "Bagi, Mate"]
[Black "Antal, Gergely"]
[Result "1/2-1/2"]
[ECO "B10"]
[WhiteElo "2460"]
[BlackElo "2571"]
[Annotator "ChessBase"]
[PlyCount "66"]
[EventDate "2022.07.15"]
[EventType "swiss"]
[EventCountry "HUN"]
[SourceTitle "playchess.com"]
[Source "ChessBase"]
[SourceQuality "1"]
[TimeControl "900+10"]

1. e4 {[%emt 0:00:13]} c6 {[%emt 0:00:11]} 2. Nf3 {[%emt 0:00:09]} d5 {[%emt 0:00:02]} 3. Nc3 {[%emt 0:00:02]} dxe4 {[%emt 0:00:01]} 4. Nxe4 {[%emt 0:00:02]} Nf6 {[%emt 0:00:01]} 5. Qe2 {[%emt 0:00:12]} Nxe4 {[%emt 0:00:02]} 6. Qxe4 {[%emt 0:00:02]} Nd7 {[%emt 0:00:02]} 7. Bc4 {[%emt 0:00:14]} Nf6 {[%emt 0:00:01]} 8. Ne5 {[%emt 0:00:14]} e6 {[%emt 0:00:02]} 9. Qe2 {[%emt 0:00:03]} b5 {[%emt 0:00:01]} 10. Bb3 {[%emt 0:00:05]} Qc7 {[%emt 0:00:01]} 11. O-O {[%emt 0:00:23]} Bd6 {[%emt 0:00:03]} 12. d4 {[%emt 0:00:05]} O-O {[%emt 0:00:03]} 13. Bf4 {[%emt 0:00:45]} a5 {[%emt 0:02:17]} 14. c3 {[%emt 0:01:18]} Nd5 {[%emt 0:01:08]} 15. Bg3 {[%emt 0:00:13]} a4 {[%emt 0:00:37]} 16. Bxd5 {[%emt 0:00:22]} exd5 {[%emt 0:00:45]} 17. Nd3 {[%emt 0:00:09]} Bf5 {[%emt 0:00:48]} 18. Nc5 {[%emt 0:00:26]} Rfe8 {[%emt 0:01:08]} 19. Qd2 {[%emt 0:01:22]} Bxg3 {[%emt 0:00:27]} 20. hxg3 {[%emt 0:00:06]} a3 {[%emt 0:00:51]} 21. Rfe1 {[%emt 0:00:55]} axb2 {[%emt 0:01:29]} 22. Qxb2 {[%emt 0:00:08]} h5 {[%emt 0:00:21]} 23. Qd2 {[%emt 0:01:11]} Bg6 {[%emt 0:01:53]} 24. Rxe8+ {[%emt 0:01:51]} Rxe8 {[%emt 0:00:01]} 25. a4 {[%emt 0:00:08]} bxa4 {[%emt 0:02:16]} 26. Rxa4 {[%emt 0:00:09]} Qb6 {[%emt 0:00:54]} 27. Ra1 {[%emt 0:00:13]} Qb5 {[%emt 0:00:55]} 28. Re1 {[%emt 0:00:18]} Ra8 {[%emt 0:00:01]} 29. Qe2 {[%emt 0:02:03]} Qa5 {[%emt 0:01:10]} 30. Qf3 {[%emt 0:00:52]} Qc7 {[%emt 0:00:18]} 31. Qf4 {[%emt 0:00:26]} Qa5 {[%emt 0:00:28]} 32. Qf3 {[%emt 0:00:34]} Qc7 {[%emt 0:00:08]} 33. Qf4 {[%emt 0:01:18]} Qa5 {[%emt 0:00:09]} 1/2-1/2